Cogmind - Beta 11 @@@ ROGUE MODE // 2022.05.03 @ 20:51:53 Player: jfk Result: Destroyed by G-50 Soldier with Heavy Laser Performance ------------- Evolutions (4) 2000 Regions Visited (11) 2200 Robots Destroyed (83) 415 Value Destroyed (3209) 3209 Prototype IDs (12) 240 Alien Tech Used (0) 0 Bonus (2762) 2762 TOTAL SCORE: 10826 Bonus ------- High Alert Combat Kills 246 Follower Combat Kills 1965 Network Hubs Disabled 200 Met R17 at Cetus 500 Friendly Fire -149 Cogmind --------- Core Integrity 0/850 Matter 286/300 Energy 70/100 System Corruption 65% Temperature Cool (9) Movement Core (50) Location -6/Hub_04(d) Parts ------- > --- POWER (2) -------- (None) > --- PROPULSION (6) --- (None) > --- UTILITY (5) ------ (None) > --- WEAPON (2) ------- (None) > --- INVENTORY (5) ---- Centrium Heavy Treads Structural Scanner Bomb Factory No. 2 Peak State ------------ > --- POWER ------------ Light Antimatter Reactor Quantum Reactor > --- PROPULSION ------- Centrium Heavy Treads Centrium Heavy Treads Centrium Heavy Treads > --- UTILITY ---------- High-capacity Storage Unit Centrium Medium Armor Plating Centrium Medium Armor Plating Centrium Medium Armor Plating > --- WEAPON ----------- Advanced Variable Charge Gun Heavy Plasma Cannon > --- INVENTORY -------- Light Deuterium Engine Light Angular Momentum Engine Centrium Heavy Treads Centrium Heavy Treads Medium Battery Medium Battery Matter Compressor Structural Scanner Long-range Tractor Beam Bomb Factory No. 2 Heavy Riot Gun Cooled Plasma Cannon Advanced KE Penetrator Advanced KE Penetrator Advanced KE Penetrator [Rating: 121] Favorites ----------- Power Reinforced Ion Engine Engine Reinforced Ion Engine Power Core Light Nuclear Core Reactor Light Antimatter Reactor Propulsion Light Treads Treads Light Treads Leg Myomer Leg Hover Unit Aerolev Unit Utility High-capacity Storage Unit Device Seismic Detector Storage High-capacity Storage Unit Processor Improved Signal Interpreter Protection Improved Light Armor Plating Weapon Bore Cannon Energy Gun Medium Laser Energy Cannon Heavy Plasma Cannon Ballistic Gun Advanced KE Penetrator Ballistic Cannon Bore Cannon Build | -11 -10 -10 -9 -9 -7 -6 -6 -6 -6 -6 -6 ------- Run | Scr Mat Min Mat Min Zio Pro Fac Ext Cet Arc Hub Slots Evolved 8 | . . . 2 . . . 6 . . . . Power 1 | . . . . . . . 1 . . . . Propulsion 4 | . . . 2 . . . 2 . . . . Utility 3 | . . . . . . . 3 . . . . Weapon . | . . . . . . . . . . . . Parts Attached 89 | 8 1 10 13 . 4 . 5 23 14 . 11 Power 20 | 1 1 4 5 . . . 2 4 1 . 2 Engine 16 | 1 1 3 4 . . . 2 3 . . 2 Core 2 | . . 1 1 . . . . . . . . Reactor 2 | . . . . . . . . 1 1 . . Propulsion 23 | 2 . 4 4 . 1 . . 8 3 . 1 Treads 12 | 2 . 2 3 . 1 . . . 3 . 1 Leg 10 | . . 2 . . . . . 8 . . . Wheel . | . . . . . . . . . . . . Hover 1 | . . . 1 . . . . . . . . Flight . | . . . . . . . . . . . . Utility 19 | 2 . 1 1 . 1 . 3 6 4 . 1 Device 3 | 1 . . . . . . . 1 1 . . Storage 2 | 1 . 1 . . . . . . . . . Processor 1 | . . . . . . . . . 1 . . Hackware . | . . . . . . . . . . . . Protection 13 | . . . 1 . 1 . 3 5 2 . 1 Artifact . | . . . . . . . . . . . . Weapon 27 | 3 . 1 3 . 2 . . 5 6 . 7 Energy Gun 8 | 2 . 1 . . . . . 2 1 . 2 Energy Cannon 3 | . . . . . . . . . 1 . 2 Ballistic Gun 12 | 1 . . 1 . 1 . . 2 4 . 3 Ballistic Cannon 4 | . . . 2 . 1 . . 1 . . . Launcher . | . . . . . . . . . . . . Special Weapon . | . . . . . . . . . . . . Impact Weapon . | . . . . . . . . . . . . Slashing Weapon . | . . . . . . . . . . . . Piercing Weapon . | . . . . . . . . . . . . Special Melee Weapon . | . . . . . . . . . . . . Unidentified Prototypes 7 | . . . 1 . . . . 1 5 . . Corrupted Parts 3 | . . . . . . . . . 1 . 2 System Corruption 18 | . . . . . . . . . 8 . 10 Parts Lost 40 | . 1 3 5 . . 1 1 12 . . 17 Power 6 | . 1 . 1 . . . . . . . 4 Propulsion 10 | . . 2 1 . . 1 1 2 . . 3 Utility 12 | . . . 1 . . . . 5 . . 6 Weapon 12 | . . 1 2 . . . . 5 . . 4 Highest Loss Streak 17 | . 1 3 2 . . 1 1 6 . . 17 To Critical Strikes . | . . . . . . . . . . . . Average Slot Usage (%) 83 | . 99 99 85 100 100 78 64 81 76 80 76 Engine 8 | . 13 11 9 11 11 11 10 10 1 . . Reactor 2 | . . . . . . . . . 11 13 12 Treads 20 | . 28 22 32 44 44 23 12 . 17 20 19 Leg 6 | . . 5 . . . . . 30 3 . . Device 4 | . 14 14 7 . . . . . 2 6 5 Storage 9 | . 14 14 11 11 11 11 6 6 6 6 5 Protection 11 | . . . 3 11 11 11 21 18 17 13 12 Energy Gun 5 | . 14 26 4 . . . . 4 . . . Ballistic Gun 8 | . 14 1 9 11 11 11 6 7 10 13 10 Ballistic Cannon 4 | . . . 7 11 11 11 6 1 . . . Naked Turns 13 | . . . . . . . . . . . 13 Heaviest Build 108 | 12 12 50 67 67 72 72 90 80 99 99 108 Greatest Support 240 | 40 40 42 85 83 83 83 43 135 240 240 240 Greatest Overweight (x) 19 | . . 1 1 . . 1 3 19 . . . Average Overweight (x) . | . . . . . . . 1 . . . . Largest Inventory Capacity 20 | 8 8 20 20 20 20 20 20 20 20 20 20 Average Capacity 18 | 7 8 15 20 20 20 20 20 20 20 20 19 Most Carried 20 | 7 8 18 20 20 20 20 20 20 20 20 20 Average Carried 18 | 4 7 13 19 19 19 19 18 19 19 20 19 Final Capacity 20 | 8 8 20 20 20 20 20 20 20 20 20 5 Final Carried 20 | 7 8 18 20 20 20 20 20 20 20 20 5 Class Distribution -------------------- 74% | Mutant 19% | Scavenger-Mutant 5% | Commander-Mutant Dominant Class ---------------- Mutant | -10/Materials Mutant | -10/Mines Mutant | -9/Materials Mutant | -9/Mines Mutant | -7/Zion Mutant | -6/Proximity Caves Mutant | -6/Factory Mutant | -6/Extension Scavenger-Mutant | -6/Cetus Scavenger-Mutant | -6/Archives Scavenger-Mutant | -6/Hub_04(d) Resources | -11 -10 -10 -9 -9 -7 -6 -6 -6 -6 -6 -6 ----------- Run | Scr Mat Min Mat Min Zio Pro Fac Ext Cet Arc Hub Matter Collected 3452 | 140 31 430 387 191 75 260 271 977 343 82 265 Remotely . | . . . . . . . . . . . . Salvage Created 3275 | 90 94 348 697 83 . 155 251 526 234 328 469 Parts 199 | 5 7 16 62 3 . 9 12 32 11 14 28 Haulers Intercepted 2 | . . . 1 . . . . 1 . . . Recyclers Shooed 2 | . . . 1 . . . . 1 . . . Parts Field Recycled . | . . . . . . . . . . . . Retrieved Matter . | . . . . . . . . . . . . Parts Self-Destructed 12 | . . . . . 3 9 . . . . . Prevented . | . . . . . . . . . . . . Kills | -11 -10 -10 -9 -9 -7 -6 -6 -6 -6 -6 -6 ------- Run | Scr Mat Min Mat Min Zio Pro Fac Ext Cet Arc Hub Combat Hostiles Destroyed 64 | . 4 9 19 2 . 3 5 7 5 4 6 Guns 44 | . 4 7 13 1 . 2 1 4 3 4 5 Cannons 16 | . . . 6 1 . 1 4 2 2 . . AOE 2 | . . 2 . . . . . . . . . Classes Destroyed 13 | 2 2 . 5 . . 2 . . 1 . 1 Worker 5 | . . . . . . . . . . . 5 Builder 3 | . . . 1 . . . . 1 . . 1 Tunneler 2 | 1 . 1 . . . . . . . . . Hauler 2 | . . . 1 . . . . 1 . . . Recycler 1 | 1 . . . . . . . . . . . Operator 3 | . . . 2 . . . . . . . 1 Watcher 3 | . . . 2 . . . . . . . 1 Swarmer 13 | . 3 3 6 . . . . . 1 . . Grunt 29 | . 1 6 8 2 . . 5 3 . . 4 Brawler 1 | . . . . . . . . . 1 . . Sentry 14 | . . . 5 . . 1 . 3 . 4 1 Hunter 1 | . . . . . . 1 . . . . . Programmer 3 | . . . . . . 1 . 1 1 . . Cetus Guard 2 | . . . . . . . . . 2 . . Lightning 1 | . . . . . . . . . . . 1 Best Kill Streak 4 | 2 3 3 4 2 . 1 3 2 2 4 2 Combat Bots Only 4 | . 3 3 4 2 . 1 3 2 2 4 2 Max Kills in Single Turn 2 | 1 1 2 1 1 . 1 2 1 1 1 2 Gunslinging . | . . . . . . . . . . . . Exploded 2 | . . 2 . . . . . . . . . Melee . | . . . . . . . . . . . . Uniques/NPCs Destroyed . | . . . . . . . . . . . . Combat | -11 -10 -10 -9 -9 -7 -6 -6 -6 -6 -6 -6 -------- Run | Scr Mat Min Mat Min Zio Pro Fac Ext Cet Arc Hub Damage Taken 9986 | . 187 552 951 122 . 462 419 1719 160 213 5201 Core 1115 | . 6 82 127 16 . 31 37 111 . . 705 Absorbed by Shields 349 | . . . . . . . . 239 110 . . Redirected to Shielding 108 | . . . . . . . . 108 . . . Core Remaining (%) 73 | 100 . 64 . . . 56 . . . . . Volleys Fired 305 | 8 10 35 70 6 . 21 24 57 21 8 45 Largest 2 | 2 2 2 2 2 . 2 2 2 2 2 2 Hottest 170 | 70 70 90 90 62 . 85 85 112 82 70 170 Shots Fired 563 | 16 20 63 122 12 . 43 48 106 43 17 73 Gun 436 | 16 20 63 76 6 . 23 24 99 37 17 55 Cannon 127 | . . . 46 6 . 20 24 7 6 . 18 Launcher . | . . . . . . . . . . . . Special . | . . . . . . . . . . . . Kinetic 425 | 8 10 16 104 12 . 43 48 78 43 17 46 Thermal 106 | 7 10 34 6 . . . . 28 . . 21 Explosive . | . . . . . . . . . . . . Electromagnetic 32 | 1 . 13 12 . . . . . . . 6 Robot Hit Streak 15 | 3 6 12 15 4 . 4 5 14 7 4 10 Robot Miss Streak 8 | 2 2 2 8 4 . 4 3 4 3 3 4 Penetration Max 1 | . . . . . . . 1 . 1 . 1 Secondary Targets 4 | . . 2 . . . . . 1 . . 1 Max Gunslinging Chain 1 | . . 1 . . . . . 1 . . 1 Shots Hit Robots 344 | 9 13 46 77 6 . 17 27 75 29 10 35 Core Hits 158 | 4 5 23 34 3 . 6 12 25 14 7 25 Critical Kills 18 | . . . . . . 1 3 4 3 4 3 Critical Parts Destroyed 22 | . . . 1 . . 2 8 1 2 1 7 Critical Strikes 50 | 1 . 4 3 . . 3 11 7 6 5 10 Burn 7 | 1 . 4 . . . . . 2 . . . Meltdown 1 | . . . . . . . . . . . 1 Destroy 40 | . . . 1 . . 3 11 5 6 5 9 Corrupt 2 | . . . 2 . . . . . . . . Melee Attacks . | . . . . . . . . . . . . Impact . | . . . . . . . . . . . . Slashing . | . . . . . . . . . . . . Piercing . | . . . . . . . . . . . . Sneak Attacks . | . . . . . . . . . . . . Combat Hostiles . | . . . . . . . . . . . . Follow-up Attacks . | . . . . . . . . . . . . Damage Inflicted 7390 | 119 143 662 1377 104 . 368 632 1295 864 288 1538 Guns 5166 | 112 143 550 778 42 . 196 254 1112 714 288 977 Cannons 1666 | . . . 479 62 . 172 377 72 150 . 354 Explosions 352 | . . 106 81 . . . . . . . 165 Melee . | . . . . . . . . . . . . Ramming 206 | 7 . 6 39 . . . 1 111 . . 42 Kinetic 5258 | 25 44 104 1088 104 . 368 631 880 864 288 862 Thermal 1400 | 75 99 420 117 . . . . 304 . . 385 Explosive . | . . . . . . . . . . . . Electromagnetic 526 | 12 . 132 133 . . . . . . . 249 Impact . | . . . . . . . . . . . . Slashing . | . . . . . . . . . . . . Piercing . | . . . . . . . . . . . . Highest Corruption 65 | . . . . . . 3 . 1 9 9 65 Average Corruption 6 | . . . . . . 2 . 1 4 9 12 Corruption Purged . | . . . . . . . . . . . . Corruption Blocked . | . . . . . . . . . . . . Effects 88 | . . . . . . 18 . 3 10 7 50 Message Errors 14 | . . . . . . 1 . 1 1 2 9 Matter Fused 23 | . . . . . . 6 . . 3 2 12 Heat Flow Errors 10 | . . . . . . 2 . . 1 1 6 Energy Discharges 12 | . . . . . . 4 . 1 1 1 5 Data Loss (minor) 15 | . . . . . . 3 . 1 3 . 8 Data Loss (major) 2 | . . . . . . . . . . . 2 Misfires 5 | . . . . . . 2 . . 1 1 1 Misdirections 3 | . . . . . . . . . . . 3 Weapon Failures 4 | . . . . . . . . . . . 4 Overload Shots . | . . . . . . . . . . . . Overflow Damage 36 | . . . 19 . . 4 4 9 . . . Projectiles 15 | . . . 7 . . 4 4 . . . . Explosions 12 | . . . 12 . . . . . . . . Melee 9 | . . . . . . . . 9 . . . Knockbacks 16 | . . . 5 1 . 2 4 3 . . 1 Impact 3 | . . . . . . . . 2 . . 1 Kinetic 12 | . . . 5 1 . 2 3 1 . . . Secondary 1 | . . . . . . . 1 . . . . Self-Inflicted Damage 135 | . . 8 31 . . . . . . . 96 Shots 3 | . . 1 1 . . . . . . . 1 Rammed 12 | 2 . . 3 . . . 1 . . . 6 Targets Rammed 25 | 2 . 1 4 . . . 1 7 . . 10 Kicked 8 | . . 1 . . . . . 7 . . . Crushed 5 | . . . 1 . . . . . . . 4 Highest Temperature 450 | 80 85 356 87 171 . 364 71 300 326 276 450 Average Temperature 85 | 36 39 111 25 87 . 148 26 77 85 98 109 Received Heat Transfer 2212 | . 54 264 258 69 . 54 135 525 4 18 831 Effects 17 | . . 3 . . . 4 . 3 1 . 6 Shutdowns 2 | . . . . . . 1 . . . . 1 Energy Bleed 3 | . . . . . . 1 . . 1 . 1 Interference 7 | . . 3 . . . 1 . 3 . . . Short Circuit 1 | . . . . . . 1 . . . . . Damage (major) 4 | . . . . . . . . . . . 4 Siege Activations . | . . . . . . . . . . . . Robots Corrupted . | . . . . . . . . . . . . Combat Hostiles . | . . . . . . . . . . . . Parts Fried . | . . . . . . . . . . . . Impact Corruptions 1 | . . . . . . . . 1 . . . Robots Melted 2 | . . . . . . . . 1 . . 1 Combat Hostiles 2 | . . . . . . . . 1 . . 1 Parts Melted 13 | . 1 6 . . . . . 5 . . 1 Heat Transferred 3368 | 296 296 1321 211 . . . . 925 . . 319 Parts Sabotaged . | . . . . . . . . . . . . Parts Stolen . | . . . . . . . . . . . . Parts Stripped . | . . . . . . . . . . . . Power Chain Reactions 3 | . . 2 1 . . . . . . . . Missiles Intercepted . | . . . . . . . . . . . . Alert | -11 -10 -10 -9 -9 -7 -6 -6 -6 -6 -6 -6 ------- Run | Scr Mat Min Mat Min Zio Pro Fac Ext Cet Arc Hub Peak Influence 939 | 10 96 162 235 100 . . 158 939 852 452 343 Initial 478 | . 6 37 . 50 . . . 1 478 286 158 Average 184 | 3 30 65 101 77 . . 52 355 666 411 126 Maximum Alert Level 3 | . . . 1 . . . . 3 3 2 1 Low Security (%) 72 | 100 100 100 88 100 . . 100 30 . . 86 Level 1 7 | . . . 11 . . . . 14 . 30 13 Level 2 14 | . . . . . . . . 43 64 69 . Level 3 4 | . . . . . . . . 10 35 . . Level 4 . | . . . . . . . . . . . . Level 5 . | . . . . . . . . . . . . High Security . | . . . . . . . . . . . . Max Security . | . . . . . . . . . . . . Squads Dispatched 15 | . 1 1 3 . . . 2 5 . . 3 Investigation 5 | . . 1 2 . . . . 2 . . . Extermination 2 | . . . . . . . 1 . . . 1 Reinforcement 6 | . 1 . 1 . . . 1 1 . . 2 Assault 2 | . . . . . . . . 2 . . . Garrison . | . . . . . . . . . . . . Intercept . | . . . . . . . . . . . . Searches Triggered . | . . . . . . . . . . . . Construction Impeded 1 | . . . . . . . . . . . 1 Haulers Reinforced . | . . . . . . . . . . . . Active Scanning Responses . | . . . . . . . . . . . . Cargo Convoy Interrupts . | . . . . . . . . . . . . Stealth | -11 -10 -10 -9 -9 -7 -6 -6 -6 -6 -6 -6 --------- Run | Scr Mat Min Mat Min Zio Pro Fac Ext Cet Arc Hub Distress Signals 5 | . . . 2 . . . . 1 2 . . Communications Jammed . | . . . . . . . . . . . . Distress Signals . | . . . . . . . . . . . . Times Spotted 163 | . 5 9 27 2 . 2 12 51 17 8 30 Peak Tracking Total 17 | . 3 3 4 1 . 1 4 5 5 1 17 Tactical Retreats 10 | . . . 1 . . . 1 5 . . 3 Traps | -11 -10 -10 -9 -9 -7 -6 -6 -6 -6 -6 -6 ------- Run | Scr Mat Min Mat Min Zio Pro Fac Ext Cet Arc Hub Traps Triggered 4 | . . . 1 . . . 1 1 . . 1 Indirectly . | . . . . . . . . . . . . Trap Hack Attempts . | . . . . . . . . . . . . Triggered . | . . . . . . . . . . . . Disarmed . | . . . . . . . . . . . . Reprogrammed . | . . . . . . . . . . . . Reused . | . . . . . . . . . . . . Traps Extracted . | . . . . . . . . . . . . Installed . | . . . . . . . . . . . . Triggered . | . . . . . . . . . . . . Machines | -11 -10 -10 -9 -9 -7 -6 -6 -6 -6 -6 -6 ---------- Run | Scr Mat Min Mat Min Zio Pro Fac Ext Cet Arc Hub Machines Disabled 20 | . . . 1 . . . . . 1 3 15 Max in Single Turn 12 | . . . 1 . . . . . 1 1 12 Garrison Access 1 | . . . . . . . . . . . 1 Network Hub 1 | . . . . . . . . . . . 1 Machines Sabotaged . | . . . . . . . . . . . . Garrisons Compromised . | . . . . . . . . . . . . Overloaded Fab Kills . | . . . . . . . . . . . . Hacking | -11 -10 -10 -9 -9 -7 -6 -6 -6 -6 -6 -6 --------- Run | Scr Mat Min Mat Min Zio Pro Fac Ext Cet Arc Hub Machines Accessed 25 | . 2 1 5 . . . 3 9 . . 5 Terminals 23 | . 2 . 5 . . . 3 9 . . 4 Fabricators . | . . . . . . . . . . . . Repair Stations . | . . . . . . . . . . . . Recycling Units . | . . . . . . . . . . . . Scanalyzers . | . . . . . . . . . . . . Garrison Access 1 | . . . . . . . . . . . 1 Total Hacks 54 | . 6 1 14 . . . 6 15 . . 12 Successful 22 | . 2 1 6 . . . 2 6 . . 5 Failed 32 | . 4 . 8 . . . 4 9 . . 7 Catastrophic 4 | . 1 . . . . . 1 1 . . 1 Database Lockouts . | . . . . . . . . . . . . Manual 32 | . 3 . 14 . . . 3 5 . . 7 Terminals 51 | . 6 . 14 . . . 6 15 . . 10 Fabricators . | . . . . . . . . . . . . Repair Stations . | . . . . . . . . . . . . Recycling Units . | . . . . . . . . . . . . Scanalyzers . | . . . . . . . . . . . . Garrison Access 2 | . . . . . . . . . . . 2 Terminal Hacks 21 | . 2 1 6 . . . 2 6 . . 4 Prototype ID Bank 3 | . . . 1 . . . . 1 . . 1 Open Door 5 | . . 1 . . . . 1 3 . . . Branch Access Points 3 | . 1 . 1 . . . 1 . . . . Alert Level 1 | . . . 1 . . . . . . . . Unreport Threat 1 | . . . 1 . . . . . . . . Hauler Manifests 1 | . . . 1 . . . . . . . . Registered Components 1 | . . . . . . . . . . . 1 Zone Layout 6 | . 1 . 1 . . . . 2 . . 2 Fabricator Hacks . | . . . . . . . . . . . . Repair Station Hacks . | . . . . . . . . . . . . Recycling Unit Hacks . | . . . . . . . . . . . . Scanalyzer . | . . . . . . . . . . . . Garrison Access Hacks 1 | . . . . . . . . . . . 1 Seal Access 1 | . . . . . . . . . . . 1 Unauthorized Hacks . | . . . . . . . . . . . . Terminals . | . . . . . . . . . . . . Fabricators . | . . . . . . . . . . . . Repair Stations . | . . . . . . . . . . . . Recycling Units . | . . . . . . . . . . . . Scanalyzers . | . . . . . . . . . . . . Garrison Access . | . . . . . . . . . . . . Data Cores Recovered 3 | . . . 2 . . . . . . . 1 Used . | . . . . . . . . . . . . Hacking Detections 20 | . 2 . 5 . . . 2 7 . . 4 Full Trace Events 3 | . . . 1 . . . . 2 . . . Feedback Events . | . . . . . . . . . . . . Feedback Blocked . | . . . . . . . . . . . . Robot Schematics Acquired . | . . . . . . . . . . . . Robots Built . | . . . . . . . . . . . . Authchips . | . . . . . . . . . . . . Time . | . . . . . . . . . . . . Total Robot Build Rating . | . . . . . . . . . . . . Part Schematics Acquired . | . . . . . . . . . . . . Parts Built . | . . . . . . . . . . . . Authchips . | . . . . . . . . . . . . Time . | . . . . . . . . . . . . Total Part Build Rating . | . . . . . . . . . . . . Parts Repaired . | . . . . . . . . . . . . Time . | . . . . . . . . . . . . Parts Recycled . | . . . . . . . . . . . . Recycled Matter . | . . . . . . . . . . . . Retrieved Matter . | . . . . . . . . . . . . Retrieved Components . | . . . . . . . . . . . . Parts Scanalyzed . | . . . . . . . . . . . . Part Schematics Acquired . | . . . . . . . . . . . . Parts Damaged . | . . . . . . . . . . . . Bothacking | -11 -10 -10 -9 -9 -7 -6 -6 -6 -6 -6 -6 ------------ Run | Scr Mat Min Mat Min Zio Pro Fac Ext Cet Arc Hub Used RIF Installer . | . . . . . . . . . . . . Robots Hacked . | . . . . . . . . . . . . Non-combat . | . . . . . . . . . . . . Combat . | . . . . . . . . . . . . Robot Hacks Applied . | . . . . . . . . . . . . Relay Couplers Released . | . . . . . . . . . . . . Fabnet Peak Effective % . | . . . . . . . . . . . . Robots Rewired 17 | . . . . . . . . 17 . . . Allies Hacked . | . . . . . . . . . . . . Hacks Repelled . | . . . . . . . . . . . . Allies | -11 -10 -10 -9 -9 -7 -6 -6 -6 -6 -6 -6 -------- Run | Scr Mat Min Mat Min Zio Pro Fac Ext Cet Arc Hub Total Allies 22 | . . . . . . . . 22 . . . Largest Group 10 | . . . . . . . . 10 3 1 . Highest-Rated Group 406 | . . . . . . . . 406 213 34 . Highest-Rated Ally 159 | . . . . . . . . 159 149 34 . Total Orders . | . . . . . . . . . . . . Ally Attacks 261 | . . . . . . . . 200 59 2 . Total Damage 6560 | . . . . . . . . 5122 1418 20 . Kills 58 | . . . . . . . . 45 13 . . Allies Corrupted 1 | . . . . . . . . 1 . . . Allies Melted . | . . . . . . . . . . . . Intel | -11 -10 -10 -9 -9 -7 -6 -6 -6 -6 -6 -6 ------- Run | Scr Mat Min Mat Min Zio Pro Fac Ext Cet Arc Hub Robot Analysis Total . | . . . . . . . . . . . . Derelict Logs Recovered 7 | . . 3 . . 2 2 . . . . . Drone Launches . | . . . . . . . . . . . . Drone Recoveries . | . . . . . . . . . . . . Exploration | -11 -10 -10 -9 -9 -7 -6 -6 -6 -6 -6 -6 ------------- Run | Scr Mat Min Mat Min Zio Pro Fac Ext Cet Arc Hub Turns Passed 9486 | 150 300 1234 1374 88 914 1057 955 1612 478 151 1173 Spaces Moved 4269 | 69 139 572 585 43 559 414 270 840 245 80 453 Core 38 | 4 . . . . . . . 7 . . 27 Treads 3228 | 65 139 397 585 43 559 414 270 32 218 80 426 Legs 1003 | . . 175 . . . . . 801 27 . . Wheels . | . . . . . . . . . . . . Hover . | . . . . . . . . . . . . Flight . | . . . . . . . . . . . . Fastest Speed 50 | 50 160 120 158 162 162 162 240 120 120 160 50 Average Speed 181 | 153 160 192 192 162 162 240 301 141 155 160 153 Slowest Speed 1000 | 160 160 237 237 162 162 243 400 1000 160 160 160 Overloaded Moves . | . . . . . . . . . . . . Propulsion Burnouts . | . . . . . . . . . . . . Robots Hopped 1 | . . . . . . . . 1 . . . Cave-ins Triggered . | . . . . . . . . . . . . Exploration Rate (%) 51 | 4 26 97 54 18 70 62 10 87 72 73 45 Regions Visited 11 Branch Regions 8 Pre-discovered Areas . | . . . . . . . . . . . . Known Exits Taken 6 | . 1 1 1 . . . 1 . 1 1 . Unknown Exits Taken 5 | 1 . . . 1 1 1 . 1 . . . Scrap Searched 8 | . . 2 . . 1 5 . . . . . Spaces Dug 7 | . . . 1 . . 1 . . . . 5 Terrain Destroyed 235 | . . 1 5 . . 10 6 2 7 . 204 Melee . | . . . . . . . . . . . . Projectile 50 | . . . 1 . . 10 6 2 7 . 24 AOE 185 | . . 1 4 . . . . . . . 180 Terrain Rammed . | . . . . . . . . . . . . Walls Destroyed . | . . . . . . . . . . . . Machines Disabled . | . . . . . . . . . . . . Actions | -11 -10 -10 -9 -9 -7 -6 -6 -6 -6 -6 -6 --------- Run | Scr Mat Min Mat Min Zio Pro Fac Ext Cet Arc Hub Total 5490 | 94 199 646 723 50 570 442 366 1161 304 87 848 Wait 461 | . 45 3 6 . . 3 58 21 . . 325 Move 4256 | 68 138 571 584 42 558 413 269 837 244 79 453 Hop 1 | . . . . . . . . 1 . . . Pick Up 73 | 8 3 17 23 1 2 2 3 7 6 . 1 Fast Attach 41 | 6 1 3 5 . 1 . 2 14 8 . 1 Attach 26 | 1 . 3 5 . . . 3 6 1 . 7 Detach 10 | . . . 2 . . . 2 3 2 . 1 Swap 22 | 1 . 4 3 . 3 . . 3 5 . 3 Drop 70 | . 2 9 21 1 6 3 2 7 17 . 2 Fire 305 | 8 10 35 70 6 . 21 24 57 21 8 45 Melee . | . . . . . . . . . . . . Ram . | . . . . . . . . . . . . Kick 8 | . . 1 . . . . . 7 . . . Crush 17 | 2 . . 4 . . . 1 . . . 10 Escape Stasis 2 | . . . . . . . 2 . . . . Rewire 198 | . . . . . . . . 198 . . . Trap . | . . . . . . . . . . . . Miscellaneous . | . . . . . . . . . . . . Route ------- -11/Scrapyard -10/Materials (discovered 3 exits: *Mat / *Min x2) -10/Mines (discovered 2 exits: *Mat x2) -9/Materials (discovered 2 exits: *Min x2) -9/Mines -7/Zion -6/Proximity Caves -6/Factory (discovered 5 exits: Fac / Low x2 / *Ext x2) -6/Extension (discovered 2 exits: *Fac / [*Cet]) -6/Cetus (discovered 3 exits: *Fac x2 / *Arc) -6/Archives (discovered 2 exits: *Hub x2) -6/Hub_04(d) (discovered 2 exits: *Fac x2) History --------- Turn | Location | Event 32 | -11/Scrapyard | Discovered new exit (range 16) 151 | -11/Scrapyard | Entered Materials 193 | -10/Materials | Identified exit to Mines 304 | -10/Materials | Build established: Mutant 313 | -10/Materials | Discovered new exit (range 16) 451 | -10/Materials | Entered Mines 514 | -10/Mines | Discovered new exit (range 4) 535 | -10/Mines | Learned Materials machine intel 595 | -10/Mines | Lost 3 parts (2n1w) 603 | -10/Mines | Learned Materials terminal intel 741 | -10/Mines | Identified exit to Materials 766 | -10/Mines | Received a Rocket Launcher from a helpful Derelict 812 | -10/Mines | Met a Derelict shopkeep closing up shop 1685 | -10/Mines | Entered Materials 1685 | -9/Materials | Evolved 2 slots: Propulsion x2 1686 | -9/Materials | Loaded intel: 62 machine locations 1687 | -9/Materials | Loaded intel: 12 terminal locations 1843 | -9/Materials | Identified exit to Mines 3059 | -9/Materials | Entered Mines 3114 | -9/Mines | Met a Derelict bent on vengeance 3135 | -9/Mines | A Derelict revealed a hidden shortcut to a safe place 3147 | -9/Mines | Entered Zion 3203 | -7/Zion | Given A8's code to call for help 3344 | -7/Zion | Learned location of 1 exit from Factory 3573 | -7/Zion | Found Prototype Device 3661 | -7/Zion | Learned 4 Factory zone layouts 4037 | -7/Zion | Discovered new exit (range 16) 4061 | -7/Zion | Entered Proximity Caves 4109 | -6/Proximity Caves | Learned Factory garrison access intel 4174 | -6/Proximity Caves | Attracted the attention of an 0b10 checkpoint 4343 | -6/Proximity Caves | Learned Factory security intel 5101 | -6/Proximity Caves | Discovered new exit (range 9) 5118 | -6/Proximity Caves | Entered Factory 5118 | -6/Factory | Evolved 6 slots: Power x1, Propulsion x2, Utility x3 5119 | -6/Factory | Identified exit to Factory 5122 | -6/Factory | Loaded intel: 4 garrison access locations 5289 | -6/Factory | Identified exit to Lower Caves 5289 | -6/Factory | Identified exit to Extension 6073 | -6/Factory | Entered Extension 6253 | -6/Extension | Lost 6 parts (1n3u2w) 6380 | -6/Extension | Identified Bomb Factory No. 2 6664 | -6/Extension | Rescued A7 6773 | -6/Extension | First assault squad dispatched 6946 | -6/Extension | Spotted B-75 Beast 7248 | -6/Extension | Disrupted transfer network 7294 | -6/Extension | Spotted B-75 Beast 7305 | -6/Extension | Allies destroyed B-75 Beast 7355 | -6/Extension | Rescued a captive Derelict 7355 | -6/Extension | Rescued a captive Derelict 7620 | -6/Extension | Rescued a captive Derelict 7620 | -6/Extension | Rescued a captive Derelict 7651 | -6/Extension | Discovered exit to Factory (range 10) 7652 | -6/Extension | Discovered new exit (range 6) 7685 | -6/Extension | Entered Cetus 7685 | -6/Cetus | Accompanied by 3 allies (A7) 7690 | -6/Cetus | Acquired a Cetus Manufacturing Module code from A7 7703 | -6/Cetus | Spotted Cetus Guard 7703 | -6/Cetus | Spotted Cetus Guard 7707 | -6/Cetus | Allies destroyed Cetus Guard 7711 | -6/Cetus | Allies destroyed Cetus Guard 7711 | -6/Cetus | Spotted Cetus Guard 7712 | -6/Cetus | Spotted Cetus Guard 7712 | -6/Cetus | Destroyed Cetus Guard 7718 | -6/Cetus | Destroyed Cetus Guard 7819 | -6/Cetus | Discovered exit to Factory (range 16) 7975 | -6/Cetus | Discovered new exit (range 15) 8004 | -6/Cetus | Spotted Cetus Guard 8004 | -6/Cetus | Spotted Cetus Guard 8013 | -6/Cetus | Allies destroyed Cetus Guard 8013 | -6/Cetus | Spotted Cetus Guard 8014 | -6/Cetus | Spotted Cetus Guard 8023 | -6/Cetus | Build established: Scavenger-Mutant 8025 | -6/Cetus | Allies destroyed Cetus Guard 8029 | -6/Cetus | Allies destroyed Cetus Guard 8031 | -6/Cetus | Allies destroyed Cetus Guard 8042 | -6/Cetus | Discovered exit to Factory (range 16) 8050 | -6/Cetus | Met Revision 17 8141 | -6/Cetus | Extracted ID and sensor layout for unrecognized location from A7's data core 8160 | -6/Cetus | Identified exit to Archives 8163 | -6/Cetus | Entered Archives 8163 | -6/Archives | Accompanied by 1 ally 8231 | -6/Archives | Discovered new exit (range 16) 8251 | -6/Archives | Discovered new exit (range 16) 8312 | -6/Archives | Identified exit to Hub_04(d) 8314 | -6/Archives | Entered Hub_04(d) 9010 | -6/Hub_04(d) | Discovered exit to Factory (range 5) 9143 | -6/Hub_04(d) | System corruption reached 10% 9177 | -6/Hub_04(d) | Discovered exit to Factory (range 15) 9330 | -6/Hub_04(d) | Network Hub disabled 9362 | -6/Hub_04(d) | Spotted Lightning 9366 | -6/Hub_04(d) | Spotted Lightning 9367 | -6/Hub_04(d) | Spotted Lightning 9370 | -6/Hub_04(d) | Spotted Lightning 9371 | -6/Hub_04(d) | Spotted Lightning 9373 | -6/Hub_04(d) | Spotted Lightning 9387 | -6/Hub_04(d) | System corruption reached 30% 9451 | -6/Hub_04(d) | Destroyed Lightning 9455 | -6/Hub_04(d) | Spotted Lightning 9458 | -6/Hub_04(d) | Spotted Lightning 9465 | -6/Hub_04(d) | Spotted Lightning 9470 | -6/Hub_04(d) | Core integrity fell below 50% 9474 | -6/Hub_04(d) | Released all parts (2) 9478 | -6/Hub_04(d) | Core integrity fell below 20% 9487 | -6/Hub_04(d) | Destroyed by G-50 Soldier with Heavy Laser Last Messages --------------- 09465_ Critical hit (Burn: +37). 09465_ EMDS Slug penetrates Door. 09466_ Acquired Corrupted Adv. KE Penetrator. 09466_ Integrated Corrupted Adv. KE Penetrator (+6). 09467_ Penetrated by EMDS Slug. 09467_ EMDS Slug penetrates Wall. 09468_ System corrupted: Adv. KE Penetrator jammed. 09469_ EMDS Slug penetrates Wall. 09470_ Slug penetrates P-60 Hacker. 09470_ Critical hit (Burn: +37). 09470_ Penetrated by EMDS Slug. 09471_ EMDS Slug penetrates Wall. 09472_ Penetrated by EMDS Slug. 09472_ EMDS Slug penetrates Wall. 09474_ Released Adv. KE Penetrator. 09474_ Released Centrium Heavy Treads. 09474_ EMDS Slug penetrates Wall. 09476_ Penetrated by EMDS Slug. 09478_ EMDS Slug penetrates Wall. 09483_ Penetrated by EMDS Slug. Map ----- +----------------------------------------------------+ | ???# #????????????# # #??? #???! ??????? | | ???# #????????????# """ # #???" #???? ??????? | | ???# #????????????# #!#??? #?????#??????? | | ???# #????????????# """ ^ #=#??"" #????????????? | | #### #????????????# %## #????????????? | | #????????????# """ !%* "" #????????????? | | #????????????# = !==[ ???????? | | #????????????# " []!!# "" #????????????? | | =#????????????# [!# #? #????????????? | | ################### #### #?????#????????????? | | !=# ## + #??????????????????? | | =%# """"## ## #??????????????????? | | # """"## ## ######??????????????????? | | =/% """"## ## #???????????????????????? | | =# """"## ## ##??????????????????????? | | # ## #h #??????????????????????? | | ######### + h #??????????????????????? | | #???????# #hg #??????????????????????? | | #???????# # #??????????????????????? | | ###+##??????###########Y ##??????????????????????? | | #???????# # #???????????????????????? | | " " #???????# " + #???????????????????????? | | " " #???????# !! " # #???????????????????????? | | " " #???????# !! " # ####????????????????????? | | #???????# ! + +????????????????????? | | % #??????# " # @ +????????????????????? | | ##??????# " ###/###???????????!????????? | | ##??????# " #? ??????????????????????? | | ######???????# #? " ??????????????????????? | | #####????????########### " #?????????????????????? | | #??????????????????# " #?????????????????????? | | " #??????????????????# #?????????????????????? | | " #??????????????????#* "#?????????????????????? | | " #??????????????????# T#?????????????????????? | | #??????????????????# "#?????????????????????? | | #??????????????????# ????????????????????????? | | #??????????????????##????????????????????????? | | "T" #????????????????????????????????????????????? | | """ #????????????????????????????????????????????? | | #####????????????????????????????????????????????? | | ########?????????????????????????????????????????? | | !! #?????????????????????????????????????????? | | !! #?????????????????????????????????????????? | | #?????????????????????????????????????????? | | #?????????????????????????????????????????? | | #?????????????????????????????????????????? | | #?????????????????????????????????????????? | | #?????????????????????????????????????????? | | ########?????????????????????????????????????????? | | ###??????????????????????????????????????????????? | +----------------------------------------------------+ Best States ------------- Heat Dissipation 37 Energy Generation 41 Energy Capacity 420 Matter Stores 300 Matter Capacity 300 Sight Range 16 Robot Scan Range 14 Terrain Scan Density 10 Armor Coverage 600 Resistance: KI 20 Power Shielding 66 Evasion (%) 55 Recoil Reduction 6 Item Schematics ----------------- None Robot Schematics ------------------ None Fabricated ------------ Nothing Alien Tech Used ----------------- None Achievements -------------- None Challenges ------------ None Game ------ Seed ControlHeartBroadsword Manual? 0 Play Time 01:26:14 Cumulative 378.2 hours Start 2022.05.03 @ 13:00:07 End 2022.05.03 @ 20:51:53 Sessions 3 Manual Loads 0 Difficulty Rogue Special Mode None Game No. 116 Rogue 4 Adventurer 0 Explorer 112 Win Type - Total 26 Types 15/3/1/1/1/2/1/2/0 Lore% 70 Gallery% 84 Achievement% 82 Wizard Run 0 Options --------- ASCII 1 Keyboard 1 Movement Vi Keybinds 0 Fullscreen 2 Font 18/TerminusBold Map View 76x50 Tactical HUD 1 Map Filters NONE Filters NONE Steam 1 RUN: e37627b8-1de0-4449-a647-7784aa10e8a7